fUSD/lending_fUSD_20260405
["ID","MTS","AMOUNT","RATE_DAILY","PERIOD"]
[419836399,1775407852124,-208.12187324,0.000159,2]
[419836400,1775407852134,-167.9673,0.000159,2]
[419836401,1775407852144,-150.0,0.000159,2]
[419836402,1775407852153,-7015.56153483,0.000159,2]
[419836403,1775407852163,-4293.65708406,0.000159,2]
[419836404,1775407852172,-150.0,0.000159,2]
[419836405,1775407852182,-7794.24996149,0.000159,2]
[419836406,1775407852192,-191.24484675,0.000159,2]
[419836407,1775407852202,-665.87615402,0.000159,2]
[419836408,1775407852211,-500.0,0.000159,2]
[419836409,1775407852220,-500.0,0.000159,2]
[419836410,1775407852229,-500.0,0.000159,2]
[419836411,1775407852239,-1939.0,0.000159,2]
[419836412,1775407852248,-1939.0,0.000159,2]
[419836413,1775407852258,-500.0,0.000159,2]
[419836414,1775407852267,-1939.0,0.000159,2]
[419836415,1775407852277,-500.0,0.000159,2]
[419836416,1775407852287,-1939.0,0.000159,2]
[419836417,1775407852296,-500.0,0.000159,2]
[419836418,1775407852306,-1939.0,0.000159,2]
[419836419,1775407852315,-1939.0,0.000159,2]
[419836420,1775407852325,-500.0,0.000159,2]
[419836421,1775407852334,-1939.0,0.000159,2]
[419836422,1775407852343,-1939.0,0.000159,2]
[419836423,1775407852353,-500.0,0.000159,2]
[419836424,1775407852362,-1939.0,0.000159,2]
[419836425,1775407852372,-500.0,0.000159,2]
[419836426,1775407852381,-1939.0,0.000159,2]
[419836427,1775407852391,-1939.0,0.000159,2]
[419836428,1775407852400,-500.0,0.000159,2]
[419836429,1775407852410,-1939.0,0.000159,2]
[419836430,1775407852419,-1939.0,0.000159,2]
[419836431,1775407852430,-500.0,0.000159,2]
[419836432,1775407852439,-1939.0,0.000159,2]
[419836433,1775407852449,-500.0,0.000159,2]
[419836434,1775407852458,-1939.0,0.000159,2]
[419836435,1775407852468,-500.0,0.000159,2]
[419836436,1775407852478,-1939.0,0.000159,2]
[419836437,1775407852487,-500.0,0.000159,2]
[419836438,1775407852496,-1939.0,0.000159,2]
[419836439,1775407852505,-616.0,0.000159,2]
[419836440,1775407852515,-500.0,0.000159,2]
[419836441,1775407852525,-1939.0,0.000159,2]
[419836442,1775407852534,-500.0,0.000159,2]
[419836443,1775407852543,-500.0,0.000159,2]
[419836444,1775407852552,-500.0,0.000159,2]
[419836445,1775407852561,-500.0,0.000159,2]
[419836446,1775407852571,-500.0,0.000159,2]
[419836447,1775407852580,-500.0,0.000159,2]
[419836448,1775407852589,-1939.0,0.000159,2]
[419836449,1775407852599,-500.0,0.000159,2]
[419836450,1775407852608,-500.0,0.000159,2]
[419836451,1775407852617,-500.0,0.000159,2]
[419836452,1775407852627,-500.0,0.000159,2]
[419836453,1775407852636,-500.0,0.000159,2]
[419836454,1775407852646,-500.0,0.000159,2]
[419836455,1775407852655,-500.0,0.000159,2]
[419836456,1775407852665,-1939.0,0.000159,2]
[419836457,1775407852674,-1939.0,0.000159,2]
[419836458,1775407852683,-1939.0,0.000159,2]
[419836459,1775407852692,-1939.0,0.000159,2]
[419836460,1775407852702,-338.15756367,0.000159,2]
[419836461,1775407852712,-1939.20664146,0.000159,2]
[419836462,1775407852721,-2000.0,0.00015901,2]
[419836463,1775407852734,-150.0,0.0001591,2]
[419836464,1775407852743,-1000.0,0.00015919,2]
[419836465,1775407852753,-1000.0,0.0001592,2]
[419836466,1775407852763,-737.22948983,0.0001593,2]
[419836467,1775407852773,-250.0,0.0001594,2]
[419836468,1775407852782,-155.09,0.0001594,2]
[419836469,1775407852792,-996.49996996,0.00015942,2]
[419836470,1775407852802,-150.0,0.00015944,2]
[419836471,1775407852813,-156.0,0.00015944,2]
[419836472,1775407852823,-150.0,0.00015948,2]
[419836473,1775407852833,-3716.00442167,0.0001596,2]
[419836474,1775407852842,-225.2565888,0.0001596,2]
[419836475,1775407852853,-225.71931471,0.00015963,2]
[419836476,1775407852864,-226.32517951,0.0001597,2]
[419836477,1775407852874,-11516.0,0.00015973,2]
[419836478,1775407852884,-354.0,0.00015973,2]
[419836479,1775407852894,-150.0,0.00015973,2]
[419836480,1775407852904,-225.93649757,0.00015974,2]
[419836481,1775407852915,-159.49976166,0.00015976,2]
[419836482,1775407852925,-684.5459167,0.00015977,2]
[419836483,1775407852936,-245.87298358,0.00015978,2]
[419836484,1775407852947,-165.08557868,0.00015984,2]
[419836485,1775407852956,-217.15233878,0.00015987,2]
[419836486,1775407852966,-200.0,0.00015987,2]
[419836487,1775407852976,-1481.23780761,0.00015987,2]
[419836488,1775407852986,-339.62894544,0.00015987,2]
[419836489,1775407852996,-187.78006525,0.00015987,2]
[419836490,1775407853006,-799.54513345,0.00015987,2]
[419836491,1775407853016,-719.04747942,0.00015987,2]
[419836492,1775407853026,-301.00069851,0.00015987,2]
[419836493,1775407853036,-505.08190528,0.0001599,2]
[419836494,1775407853045,-505.08190528,0.0001599,2]
[419836495,1775407853056,-243.15789,0.00015997,2]
[419836496,1775407853066,-732.60654138,0.00015999,2]
[419836497,1775407853077,-666.0,0.00015999,2]
[419836498,1775407853087,-666.0,0.00015999,2]
[419836499,1775407853098,-666.0,0.00015999,2]
[419836500,1775407853108,-64112.9284586,0.00015999,2]
[419836501,1775407853118,-12435.1084313,0.00015999,2]
[419836502,1775407853127,-604403.1177102,0.00015999,2]
[419836503,1775407853137,-189.79078656,0.00015999,2]
[419836504,1775407853147,-518.811803,0.00015999,2]
[419836505,1775407853158,-518.811803,0.00015999,2]
[419836506,1775407853167,-518.811803,0.00015999,2]
[419836507,1775407853177,-518.811803,0.00015999,2]
[419836508,1775407853187,-410.283982,0.00015999,2]
[419836509,1775407853197,-410.283982,0.00015999,2]
[419836510,1775407853207,-410.283982,0.00015999,2]
[419836511,1775407853218,-410.283982,0.00015999,2]
[419836512,1775407853228,-150.0,0.00016,2]
[419836513,1775407853237,-150.0,0.00016,2]
[419836514,1775407853247,-150.0,0.00016,2]
[419836515,1775407853256,-150.00000001,0.00016,2]
[419836516,1775407853267,-150.0,0.00016,2]
[419836517,1775407853277,-150.0,0.00016,2]
[419836518,1775407853287,-150.0,0.00016,2]
[419836519,1775407853297,-150.0,0.00016,2]
[419836520,1775407853308,-267.10584669,0.00016,2]
[419836521,1775407853319,-1045412.65239231,0.00016,2]
[419836522,1775407853328,-45709.55949389,0.00016,2]
[419836523,1775407853337,-2450435.96141221,0.00016,2]
[419836524,1775407854723,-1176.555,0.00010585,2]
[419836525,1775407854736,-423.445,0.00010585,2]
[419836526,1775407854745,-341.3568764,0.00016,2]
[419836527,1775407854788,-121064.51834723,0.00016,2]
[419836528,1775407854799,-323.43588522,0.00016,2]
[419836529,1775407854810,-2188.77668008,0.00016,2]
[419836530,1775407854821,-1852.927,0.00016,2]
[419836531,1775407855105,-1600.0,0.00011908,2]
[419836532,1775407855114,-1600.0,0.00013231,2]
[419836533,1775407855124,-1600.0,0.00014554,2]
[419836534,1775407855134,-1600.0,0.00015877,2]
[419836535,1775407855144,-1881.99974931,0.000159,2]
[419836536,1775407855153,-8815.4476183,0.00016,2]
[419836537,1775407855164,-33543.49708184,0.00016,2]
[419836538,1775407855176,-2987.2,0.00016,2]
[419836539,1775407855187,-2095.592,0.00016,2]
[419836540,1775407855198,-1603.7496992,0.00016,2]
[419836541,1775407855216,-2238.0,0.00016,2]
[419836542,1775407855237,-1397.0,0.00016,2]
[419836543,1775407855248,-774.6985844,0.00016,2]
[419836544,1775407855299,-2451465.45254734,0.00016,2]
[419836545,1775407855308,-1227217.93503749,0.00016,2]
[419836546,1775407855362,-6395.69726262,0.000159,2]
[419836547,1775407855372,-108629.34869642,0.00016,2]
[419836548,1775407855906,-7852.20541539,0.000159,2]
[419836549,1775407855918,-16412.51589327,0.000159,2]
[419836550,1775407855927,-1668945.55240614,0.00016,2]
[419836551,1775407855939,-88918.0226084,0.00016,2]
[419836552,1775407855951,-98188.44683561,0.00016,2]
[419836553,1775407856017,-7689.30791819,0.00016,2]
[419836554,1775407856447,-2000.0,0.00015336,2]
[419836555,1775407856457,-2000.0,0.00015336,2]
[419836556,1775407856466,-36109.59507858,0.00016,2]
[419836557,1775407856486,-1180.09,0.00016,2]
[419836558,1775407856507,-2000.0,0.00015336,2]
[419836559,1775407856518,-66525.97040653,0.00016,2]
[419836560,1775407856556,-1285.67821141,0.00016,2]
[419836561,1775407856567,-1785.79678796,0.00016,2]
[419836562,1775407856973,-38.81937832,0.00016,2]
[419836563,1775407856997,-1959.29828611,0.000159,2]
[419836566,1775408609453,150.0,0.00011233,120]
[419836567,1775408861787,284.11,7.799e-05,2]
[419836571,1775408972241,-1200.0,9.198e-05,2]
[419836572,1775408972264,-300.0,9.198e-05,2]
[419836573,1775408972286,-300.0,9.198e-05,2]
[419836574,1775408972307,-250.0,9.199e-05,2]
[419836575,1775408972329,-6531.855,9.199e-05,2]
[419836576,1775408972353,-332.722,9.199e-05,2]
[419836577,1775408972376,-250.0,9.273e-05,2]
[419836578,1775408972397,-2500.0,9.287e-05,2]
[419836579,1775408972418,-500.0,9.363e-05,2]
[419836580,1775408972440,-500.0,9.363e-05,2]
[419836581,1775408972461,-500.0,9.363e-05,2]
[419836582,1775408972483,-1252.18,9.386e-05,2]
[419836583,1775408972505,-500.0,9.386e-05,2]
[419836584,1775408972525,-273.0628458,9.386e-05,2]
[419836585,1775408972546,-200.09793193,9.386e-05,2]
[419836586,1775408972567,-338.56055774,9.386e-05,2]
[419836587,1775408972594,-500.0,9.386e-05,2]
[419836588,1775408972616,-500.0,9.386e-05,2]
[419836589,1775408972637,-500.0,9.386e-05,2]
[419836590,1775408972663,-500.0,9.386e-05,2]
[419836591,1775408972684,-257.7766621,9.386e-05,2]
[419836592,1775408972706,-500.0,9.386e-05,2]
[419836593,1775408972732,-342.31560068,9.386e-05,2]
[419836620,1775409032485,-500.0,9.363e-05,2]
[419836621,1775409032495,-109.735,9.363e-05,2]
[419836631,1775409040945,-390.265,9.363e-05,2]
[419836632,1775409040955,-37.31862637,9.363e-05,2]
[419836633,1775409040970,-462.68137363,9.363e-05,2]
[419836634,1775409040981,-500.0,9.363e-05,2]
[419836635,1775409040991,-500.0,9.363e-05,2]
[419836636,1775409041001,-250.0,9.374e-05,2]
[419836637,1775409041012,-204.60827648,9.385e-05,2]
[419836638,1775409041024,-95.39172352,9.385e-05,2]
[419836639,1775409041034,-1200.0,9.385e-05,2]
[419836640,1775409041045,-157.68439932,9.386e-05,2]
[419836641,1775409041056,-496.83696599,9.386e-05,2]
[419836642,1775409041068,-3.16303401,9.386e-05,2]
[419836643,1775409041077,-500.0,9.386e-05,2]
[419836644,1775409041088,-291.69541646,9.386e-05,2]
[419836645,1775409041098,-500.0,9.386e-05,2]
[419836646,1775409041108,-500.0,9.386e-05,2]
[419836647,1775409041117,-600.0,9.386e-05,2]
[419836648,1775409041127,-182.89801186,9.386e-05,2]
[419836649,1775409041136,-199.07726849,9.386e-05,2]
[419836650,1775409041146,-334.18058884,9.386e-05,2]
[419836651,1775409041165,-165.81941116,9.386e-05,2]
[419836652,1775409041181,-500.0,9.386e-05,2]
[419836653,1775409041191,-500.0,9.386e-05,2]
[419836654,1775409041202,-500.0,9.386e-05,2]
[419836655,1775409041212,-500.0,9.386e-05,2]
[419836656,1775409041221,-500.0,9.386e-05,2]
[419836657,1775409041233,-500.0,9.386e-05,2]
[419836658,1775409041243,-500.0,9.386e-05,2]
[419836659,1775409041253,-500.0,9.386e-05,2]
[419836660,1775409041262,-500.0,9.386e-05,2]
[419836661,1775409041272,-500.0,9.386e-05,2]
[419836662,1775409041282,-500.0,9.386e-05,2]
[419836663,1775409041292,-500.0,9.386e-05,2]
[419836664,1775409041301,-500.0,9.386e-05,2]
[419836665,1775409041311,-334.83008238,9.386e-05,2]
[419836666,1775409041320,-79168.27518579,9.387e-05,2]
[419836667,1775409041360,-1136449.92931421,9.387e-05,2]
[419836668,1775409041370,-23789.0224,9.487e-05,2]
[419836669,1775409041380,-501.14299175,9.911e-05,2]
[419836670,1775409041390,-1000.0,9.911e-05,2]
[419836671,1775409041400,-500.0,9.911e-05,2]
[419836672,1775409041411,-1059.19665776,9.911e-05,2]
[419836673,1775409041421,-500.0,9.911e-05,2]
[419836674,1775409041430,-1000.0,9.911e-05,2]
[419836675,1775409041440,-1000.0,9.911e-05,2]
[419836676,1775409041450,-471.62275228,9.911e-05,2]
[419836677,1775409041460,-150.0,0.0001,2]
[419836678,1775409041470,-500.0,0.0001,2]
[419836680,1775409041479,-500.0,0.0001,2]
[419836682,1775409041488,-500.0,0.0001,2]
[419836684,1775409041497,-500.0,0.0001,2]
[419836686,1775409041507,-500.0,0.0001,2]
[419836688,1775409041516,-500.0,0.0001,2]
[419836689,1775409041525,-500.0,0.0001,2]
[419836690,1775409041534,-500.0,0.0001,2]
[419836691,1775409041544,-500.0,0.0001,2]
[419836692,1775409041553,-500.0,0.0001,2]
[419836693,1775409041563,-500.0,0.0001,2]
[419836694,1775409041572,-200.0,0.0001,2]
[419836695,1775409041581,-500.0,0.0001,2]
[419836696,1775409041590,-151.0,0.0001,2]
[419836697,1775409041599,-151.0,0.0001,2]
[419836698,1775409041609,-151.0,0.0001,2]
[419836699,1775409041618,-151.0,0.0001,2]
[419836700,1775409041628,-151.0,0.0001,2]
[419836701,1775409041637,-500.0,0.0001,2]
[419836702,1775409041646,-151.0,0.0001,2]
[419836703,1775409041656,-500.0,0.0001,2]
[419836704,1775409041666,-151.0,0.0001,2]
[419836705,1775409041680,-500.0,0.0001,2]
[419836706,1775409041690,-151.0,0.0001,2]
[419836707,1775409041700,-500.0,0.0001,2]
[419836708,1775409041710,-151.0,0.0001,2]
[419836709,1775409041719,-500.0,0.0001,2]
[419836710,1775409041729,-151.0,0.0001,2]
[419836711,1775409041739,-500.0,0.0001,2]
[419836712,1775409041748,-151.0,0.0001,2]
[419836713,1775409041758,-500.0,0.0001,2]
[419836714,1775409041769,-151.0,0.0001,2]
[419836715,1775409041778,-500.0,0.0001,2]
[419836716,1775409041788,-500.0,0.0001,2]
[419836717,1775409041798,-500.0,0.0001,2]
[419836718,1775409041808,-500.0,0.0001,2]
[419836719,1775409041817,-309.18885243,0.0001,2]
[419836720,1775409041827,-174.60324019,0.0001,2]
[419836721,1775409041836,-1337.30371513,0.0001,2]
[419836722,1775409041846,-505.08190528,0.0001,2]
[419836723,1775409041856,-200.0,0.00010046,2]
[419836724,1775409041867,-250.0,0.00010118,2]
[419836725,1775409041877,-328.0,0.00010118,2]
[419836726,1775409041886,-250.0,0.00010299,2]
[419836727,1775409041896,-420.0,0.00010324,2]
[419836728,1775409041906,-1680.0,0.00010324,2]
[419836729,1775409041917,-1108.3186174,0.00010458,2]
[419836730,1775409041927,-1512.47134075,0.00010458,2]
[419836731,1775409041936,-1377.452931,0.00010458,2]
[419836732,1775409041946,-200.0,0.00010548,2]
[419836733,1775409041955,-1386.78395259,0.00010548,2]
[419836734,1775409041965,-500.0,0.00010699,2]
[419836735,1775409041976,-243.1599124,0.00010699,2]
[419836736,1775409041985,-500.0,0.00010699,2]
[419836737,1775409041995,-165.43645112,0.00010699,2]
[419836738,1775409042006,-500.0,0.00010699,2]
[419836739,1775409042016,-452.37817963,0.00010699,2]
[419836740,1775409042027,-639.1625582,0.00010699,2]
[419836741,1775409042038,-500.0,0.00010699,2]
[419836742,1775409042049,-385.3027946,0.00010699,2]
[419836743,1775409042059,-500.0,0.00010699,2]
[419836744,1775409042070,-500.0,0.00010699,2]
[419836745,1775409042081,-500.0,0.00010699,2]
[419836746,1775409042091,-500.0,0.00010699,2]
[419836747,1775409042102,-500.0,0.00010699,2]
[419836748,1775409042112,-500.0,0.00010699,2]
[419836749,1775409042122,-641.65867675,0.00010699,2]
[419836750,1775409042132,-500.0,0.00010699,2]
[419836751,1775409042141,-758185.93493143,0.000107,2]
[419836752,1775409042151,-166.66,0.00010778,2]
[419836753,1775409042161,-500.0,0.00010959,2]
[419836754,1775409042171,-150.0,0.00010959,2]
[419836755,1775409042183,-1561.16,0.00010959,2]
[419836756,1775409042193,-165.33246322,0.00010959,2]
[419836757,1775409042203,-2604.59251375,0.00011,2]
[419836758,1775409042213,-281569.81,0.00011025,2]
[419836759,1775409042223,-500.0,0.00011073,2]
[419836760,1775409042233,-500.0,0.00011073,2]
[419836761,1775409042243,-200.0,0.00011096,2]
[419836762,1775409042253,-1438.09495884,0.00011096,2]
[419836763,1775409042263,-64484.57407294,0.00011099,2]
[419836764,1775409042272,-64484.57407286,0.00011099,2]
[419836765,1775409042282,-64484.57407286,0.00011099,2]
[419836766,1775409042291,-73873.79423823,0.00011099,2]
[419836767,1775409042301,-73873.79423819,0.00011099,2]
[419836768,1775409042311,-73873.79423819,0.00011099,2]
[419836769,1775409042320,-166.66,0.00011134,2]
[419836770,1775409042330,-150.0,0.00011233,2]
[419836771,1775409042340,-169.3773,0.000113,2]
[419836772,1775409042350,-587.0,0.00011356,2]
[419836773,1775409042359,-2351.0,0.00011356,2]
[419836774,1775409042370,-166.66,0.0001149,2]
[419836775,1775409042380,-64484.57407286,0.00011558,2]
[419836776,1775409042389,-73873.79423819,0.00011558,2]
[419836777,1775409042399,-342.92,0.00011585,2]
[419836778,1775409042409,-600.0,0.00011585,2]
[419836779,1775409042418,-1036.47392718,0.00011621,2]
[419836780,1775409042428,-500.0,0.00011621,2]
[419836781,1775409042438,-200.0,0.00011644,2]
[419836782,1775409042448,-1491.30447232,0.00011644,2]
[419836783,1775409042458,-346.91403032,0.00011774,2]
[419836784,1775409042467,-333.32071224,0.00011784,2]
[419836785,1775409042477,-166.66,0.00011845,2]
[419836786,1775409042488,-150.0,0.0001188,2]
[419836787,1775409042498,-250.0,0.00012154,2]
[419836788,1775409042508,-200.0,0.00012192,2]
[419836789,1775409042517,-818.35322989,0.00012192,2]
[419836790,1775409042527,-166.66,0.00012201,2]
[419836791,1775409042536,-64484.57407286,0.00012282,2]
[419836792,1775409042546,-73873.79423819,0.00012282,2]
[419836793,1775409042557,-823.0,0.00012492,2]
[419836794,1775409042568,-3292.0,0.00012492,2]
[419836795,1775409042578,-309.90283068,0.000125,2]
[419836796,1775409042588,-166.66,0.00012557,2]
[419836797,1775409042598,-191.2578,0.000127,2]
[419836798,1775409042610,-200.0,0.0001274,2]
[419836799,1775409042621,-299.99,0.00012893,2]
[419836800,1775409042631,-150.99,0.00012893,2]
[419836801,1775409042641,-9999.99,0.00012893,2]
[419836802,1775409042650,-64691.17402393,0.00012999,2]
[419836803,1775409042660,-5651.24226969,0.00013,2]
[419836804,1775409042670,-1811.5322899,0.00013,15]
[419836805,1775409042680,-64484.57407286,0.00013005,2]
[419836806,1775409042689,-73873.79423819,0.00013005,2]
[419836807,1775409042699,-5390.67222516,0.0001305,2]
[419836808,1775409042709,-504.0,0.00013111,2]
[419836809,1775409042718,-2000.0,0.00013195,2]
[419836810,1775409042728,-2000.0,0.00013195,2]
[419836811,1775409042738,-2000.0,0.00013195,2]
[419836812,1775409042747,-2000.0,0.00013195,2]
[419836813,1775409042757,-2000.0,0.00013195,2]
[419836814,1775409042766,-2000.0,0.00013195,2]
[419836815,1775409042776,-2000.0,0.00013195,2]
[419836816,1775409042786,-2000.0,0.00013195,2]
[419836817,1775409042795,-2000.0,0.00013195,2]
[419836818,1775409042805,-2000.0,0.00013195,2]
[419836819,1775409042815,-2000.0,0.00013195,2]
[419836820,1775409042825,-2000.0,0.00013195,2]
[419836821,1775409042835,-1535.0,0.00013195,2]
[419836822,1775409042844,-2000.0,0.00013212,2]
[419836823,1775409042865,-2000.0,0.00013212,2]
[419836824,1775409042875,-2000.0,0.00013212,2]
[419836825,1775409042885,-2000.0,0.00013212,2]
[419836826,1775409042895,-2000.0,0.00013212,2]
[419836827,1775409042905,-2000.0,0.00013212,2]
[419836828,1775409042914,-2000.0,0.00013212,2]
[419836829,1775409042924,-2000.0,0.00013212,2]
[419836830,1775409042934,-2000.0,0.00013212,2]
[419836831,1775409042945,-2000.0,0.00013212,2]
[419836832,1775409042954,-2000.0,0.00013212,2]
[419836833,1775409042964,-2000.0,0.00013212,2]
[419836834,1775409042973,-2000.0,0.00013212,2]
[419836835,1775409042983,-2000.0,0.00013212,2]
[419836836,1775409042993,-2000.0,0.00013212,2]
[419836837,1775409043002,-2000.0,0.00013212,2]
[419836838,1775409043012,-2000.0,0.00013212,2]
[419836840,1775409043022,-2000.0,0.00013212,2]
[419836841,1775409043031,-2000.0,0.00013212,2]
[419836843,1775409043041,-2000.0,0.00013212,2]
[419836844,1775409043051,-200.0,0.00013288,2]
[419836846,1775409043062,-3240.0,0.00013425,2]
[419836847,1775409043072,-1000.0,0.000135,2]
[419836849,1775409043082,-160.0,0.00013586,2]
[419836851,1775409043093,-210.48799529,0.00013598,2]
[419836853,1775409043103,-15523.38144375,0.00013598,2]
[419836856,1775409043113,-505.08190528,0.00013689,2]
[419836858,1775409043123,-500.0,0.00013695,2]
[419836861,1775409043132,-500.0,0.00013695,2]
[419836863,1775409043143,-150.0,0.00013695,2]
[419836865,1775409043152,-500.0,0.00013698,2]
[419836868,1775409043162,-500.0,0.00013698,2]
[419836870,1775409043172,-500.0,0.00013698,2]
[419836874,1775409043183,-500.0,0.00013698,2]
[419836876,1775409043193,-500.0,0.00013698,2]
[419836877,1775409043204,-500.0,0.00013698,2]
[419836879,1775409043214,-500.0,0.00013698,2]
[419836881,1775409043224,-500.0,0.00013698,2]
[419836882,1775409043238,-500.0,0.00013698,2]
[419836883,1775409043248,-500.0,0.00013698,2]
[419836884,1775409043258,-500.0,0.00013698,2]
[419836885,1775409043267,-500.0,0.00013698,2]
[419836886,1775409043277,-500.0,0.00013698,2]
[419836887,1775409043287,-500.0,0.00013698,2]
[419836888,1775409043297,-500.0,0.00013698,2]
[419836889,1775409043306,-497.49770464,0.00013698,2]
[419836890,1775409043316,-726.93,0.00013698,2]
[419836891,1775409043326,-726.93,0.00013698,2]
[419836892,1775409043336,-726.93,0.00013698,2]
[419836893,1775409043345,-726.93,0.00013698,2]
[419836894,1775409043355,-726.93,0.00013698,2]
[419836895,1775409043369,-726.93,0.00013698,2]
[419836896,1775409043379,-726.93,0.00013698,2]
[419836897,1775409043389,-726.93,0.00013698,2]
[419836898,1775409043399,-726.93,0.00013698,2]
[419836899,1775409043409,-726.93,0.00013698,2]
[419836900,1775409043419,-726.93,0.00013698,2]
[419836901,1775409043429,-726.93,0.00013698,2]
[419836902,1775409043439,-726.93,0.00013698,2]
[419836903,1775409043449,-726.93,0.00013698,2]
[419836904,1775409043459,-500.0,0.00013698,2]
[419836905,1775409043470,-500.0,0.00013698,2]
[419836906,1775409043480,-500.0,0.00013698,2]
[419836907,1775409043491,-500.0,0.00013698,2]
[419836908,1775409043501,-500.0,0.00013698,2]
[419836909,1775409043511,-500.0,0.00013698,2]
[419836910,1775409043521,-500.0,0.00013698,2]
[419836911,1775409043531,-500.0,0.00013698,2]
[419836912,1775409043541,-500.0,0.00013698,2]
[419836913,1775409043551,-500.0,0.00013698,2]
[419836914,1775409043562,-500.0,0.00013698,2]
[419836915,1775409043572,-390.77484076,0.00013698,2]
[419836916,1775409043582,-500.0,0.00013698,2]
[419836917,1775409043592,-500.0,0.00013698,2]
[419836918,1775409043602,-500.0,0.00013698,2]
[419836919,1775409043612,-500.0,0.00013698,2]
[419836920,1775409043623,-500.0,0.00013698,2]
[419836921,1775409043633,-500.0,0.00013698,2]
[419836922,1775409043643,-500.0,0.00013698,2]
[419836923,1775409043680,-500.0,0.00013698,2]
[419836924,1775409043706,-500.0,0.00013698,2]
[419836925,1775409043724,-500.0,0.00013698,2]
[419836927,1775409043741,-500.0,0.00013698,2]
[419836928,1775409043760,-500.0,0.00013698,2]
[419836929,1775409043778,-500.0,0.00013698,2]
[419836930,1775409043799,-500.0,0.00013698,2]
[419836931,1775409043817,-500.0,0.00013698,2]
[419836932,1775409043833,-500.0,0.00013698,2]
[419836933,1775409043849,-500.0,0.00013698,2]
[419836934,1775409043862,-500.0,0.00013698,2]
[419836935,1775409043877,-500.0,0.00013698,2]
[419836936,1775409043895,-500.0,0.00013698,2]
[419836939,1775409043912,-500.0,0.00013698,2]
[419836942,1775409043929,-500.0,0.00013698,2]
[419836945,1775409043949,-500.0,0.00013698,2]
[419836948,1775409043961,-500.0,0.00013698,2]
[419836950,1775409043973,-500.0,0.00013698,2]
[419836953,1775409043992,-500.0,0.00013698,2]
[419836956,1775409044006,-500.0,0.00013698,2]
[419836958,1775409044022,-500.0,0.00013698,2]
[419836962,1775409044049,-500.0,0.00013698,2]
[419836965,1775409044064,-500.0,0.00013698,2]
[419836967,1775409044078,-500.0,0.00013698,2]
[419836970,1775409044094,-500.0,0.00013698,2]
[419836973,1775409044112,-500.0,0.00013698,2]
[419836976,1775409044131,-500.0,0.00013698,2]
[419836977,1775409044150,-500.0,0.00013698,2]
[419836978,1775409044218,-500.0,0.00013698,2]
[419836979,1775409044238,-500.0,0.00013698,2]
[419836980,1775409044257,-500.0,0.00013698,2]
[419836981,1775409044275,-500.0,0.00013698,2]
[419836982,1775409044293,-500.0,0.00013698,2]
[419836983,1775409044311,-500.0,0.00013698,2]
[419836984,1775409044330,-500.0,0.00013698,2]
[419836985,1775409044349,-663.75,0.00013698,2]
[419836986,1775409044367,-663.75,0.00013698,2]
[419836987,1775409044384,-663.75,0.00013698,2]
[419836988,1775409044400,-663.75,0.00013698,2]
[419836989,1775409044419,-663.75,0.00013698,2]
[419836990,1775409044436,-663.75,0.00013698,2]
[419836991,1775409044453,-663.75,0.00013698,2]
[419836992,1775409044470,-663.75,0.00013698,2]